bitfinex-derivatives/quotes_BTCF0:USTF0_20250602
["timestamp","ask_amount","ask_price","bid_price","bid_amount"]
[1748885747137,0.40858103,104330.0,104320.0,0.6709489]
[1748885747541,0.41658103,104330.0,104320.0,0.6399489]
[1748885747737,0.98400257,104330.0,104320.0,0.1932689]
[1748885747934,0.98400257,104330.0,104320.0,0.6199489]
[1748885748137,0.98400257,104330.0,104320.0,0.6197489]
[1748885748441,0.98400257,104330.0,104320.0,0.6199489]
[1748885748639,0.98400257,104330.0,104320.0,0.5137889]
[1748885749242,0.77738103,104330.0,104320.0,0.0669089]
[1748885749434,0.41658103,104330.0,104320.0,0.5537889]
[1748885749637,0.41658103,104330.0,104320.0,0.7454159]
[1748885749638,0.35468103,104330.0,104320.0,0.7454159]
[1748885750148,0.32128103,104330.0,104320.0,0.95203744]
[1748885750452,0.32148103,104330.0,104320.0,1.24568997]
[1748885750744,0.32148103,104330.0,104320.0,1.65740902]
[1748885750948,0.11987223,104330.0,104320.0,1.73969446]
[1748885751155,0.31128093,104330.0,104320.0,1.78424077]
[1748885751448,0.31148093,104330.0,104320.0,1.73332326]
[1748885751646,0.31128093,104330.0,104320.0,3.23332326]
[1748885751850,0.31148093,104330.0,104320.0,3.23332326]
[1748885752033,0.31148093,104330.0,104320.0,3.33536225]
[1748885752237,0.31148093,104330.0,104320.0,3.3487727]
[1748885752436,0.31148093,104330.0,104320.0,3.40829732]
[1748885752638,0.31148093,104330.0,104320.0,3.4082968]
[1748885753048,0.31148093,104330.0,104320.0,3.39488687]
[1748885753248,0.31148093,104330.0,104320.0,3.47137184]
[1748885753443,0.30548093,104330.0,104320.0,3.44029176]
[1748885753645,0.29848093,104330.0,104320.0,3.44487999]
[1748885754558,0.29848093,104330.0,104320.0,3.53399041]
[1748885754739,0.29848093,104330.0,104320.0,3.54740041]
[1748885755140,0.29848093,104330.0,104320.0,3.53399041]
[1748885755745,0.29848093,104330.0,104320.0,3.54740591]
[1748885755940,0.29848093,104330.0,104320.0,3.53399041]
[1748885756651,0.29848093,104330.0,104320.0,3.47446579]
[1748885756847,0.29848093,104330.0,104320.0,3.48787286]
[1748885757053,0.29848093,104330.0,104320.0,3.47446579]
[1748885757649,0.29848093,104330.0,104320.0,3.48472979]
[1748885758457,0.10687223,104330.0,104320.0,3.58852677]
[1748885758747,0.05837428,104330.0,104320.0,3.94652207]
[1748885758949,0.06270548,104330.0,104320.0,3.94652207]
[1748885759145,0.06250548,104330.0,104320.0,3.94677057]
[1748885759354,0.0073312,104330.0,104320.0,3.87393479]
[1748885759656,0.0073312,104330.0,104320.0,4.02259192]
[1748885759850,0.0073312,104330.0,104320.0,3.82784792]
[1748885760057,0.0073312,104330.0,104320.0,3.9763653]
[1748885760854,0.0073312,104330.0,104320.0,2.43452727]
[1748885761048,0.23961363,104350.0,104340.0,0.1915901]
[1748885761250,0.23961363,104350.0,104340.0,1.96228979]
[1748885761452,0.23981363,104350.0,104340.0,2.01344903]
[1748885761656,0.23981363,104350.0,104340.0,2.33344903]
[1748885762260,0.24581363,104350.0,104340.0,2.33344903]
[1748885763163,0.23981363,104350.0,104340.0,2.33744903]
[1748885763452,0.24881363,104350.0,104340.0,2.39750855]
[1748885763854,0.24081363,104350.0,104340.0,2.40050855]
[1748885764256,0.19292013,104350.0,104340.0,2.40050855]
[1748885764455,0.00134373,104350.0,104340.0,3.40222455]
[1748885764657,3e-08,104350.0,104340.0,3.27154641]
[1748885764962,0.00020003,104350.0,104340.0,3.66474295]
[1748885765161,3e-08,104350.0,104340.0,3.66474295]
[1748885765469,0.00020003,104350.0,104340.0,3.59190717]
[1748885765760,0.00020003,104350.0,104340.0,3.65240081]
[1748885766157,3e-08,104350.0,104340.0,3.6808673]
[1748885766458,0.00020003,104350.0,104340.0,3.56196843]
[1748885766963,3e-08,104350.0,104340.0,5.06196843]
[1748885767258,3e-08,104350.0,104340.0,5.12233827]
[1748885767466,3e-08,104350.0,104340.0,5.09178337]
[1748885767658,3e-08,104350.0,104340.0,5.15221216]
[1748885768164,0.00014373,104360.0,104350.0,0.1915715]
[1748885768364,0.00014373,104360.0,104350.0,1.38996425]
[1748885768557,0.00014373,104360.0,104350.0,1.78668414]
[1748885768757,0.00014373,104360.0,104350.0,1.84590452]
[1748885769260,0.00614373,104360.0,104350.0,1.84590452]
[1748885769866,0.01514373,104360.0,104350.0,1.84690452]
[1748885770069,0.01514373,104360.0,104350.0,1.59690452]
[1748885770261,0.01514373,104360.0,104350.0,2.14942452]
[1748885770861,0.00814373,104360.0,104350.0,1.71035305]
[1748885771164,0.19369683,104360.0,104350.0,1.23769321]
[1748885771366,0.25629683,104360.0,104350.0,1.23788012]
[1748885771669,0.25629683,104360.0,104350.0,1.52035192]
[1748885771854,0.25629683,104360.0,104350.0,0.96783192]
[1748885772059,0.25629683,104360.0,104350.0,1.48915192]
[1748885772460,0.35629683,104360.0,104350.0,1.48915192]
[1748885773268,0.35629683,104360.0,104350.0,1.04271192]
[1748885773470,0.35629683,104360.0,104350.0,1.4378915]
[1748885773967,0.35929673,104360.0,104350.0,1.4378915]
[1748885775063,0.35929673,104360.0,104350.0,1.4228915]
[1748885775064,0.35829673,104360.0,104350.0,1.4228915]
[1748885775372,0.35829673,104360.0,104350.0,1.4268915]
[1748885776171,0.35829673,104360.0,104350.0,1.47800185]
[1748885776574,0.35729673,104360.0,104350.0,1.47500185]
[1748885777069,0.35729673,104360.0,104350.0,1.02856185]
[1748885777367,0.35729673,104360.0,104350.0,1.28343035]
[1748885777563,0.35729673,104360.0,104350.0,1.4238915]
[1748885778074,0.35429683,104360.0,104350.0,1.4238915]
[1748885778764,0.35729673,104360.0,104350.0,1.4238915]
[1748885779875,0.35729673,104360.0,104350.0,1.23232]
[1748885780072,0.64040324,104360.0,104350.0,0.4998]
[1748885780369,0.36729673,104360.0,104350.0,1.2438915]
[1748885780571,0.36729673,104360.0,104350.0,1.29507107]
[1748885782176,0.36729673,104360.0,104350.0,1.29508349]
[1748885785978,0.36729673,104360.0,104350.0,1.2438915]
[1748885786169,0.36729673,104360.0,104350.0,1.29512564]
[1748885787570,0.36729673,104360.0,104350.0,1.35555097]
[1748885787982,0.57439392,104360.0,104350.0,0.19023414]
[1748885788278,0.57439392,104360.0,104350.0,0.139]
[1748885789767,1.13519392,104360.0,104350.0,0.59444]
[1748885790170,0.92809673,104360.0,104350.0,0.59444]
[1748885790374,1.13519392,104360.0,104350.0,0.59444]
[1748885790880,1.23102192,104360.0,104350.0,0.009]
[1748885791078,1.23102192,104360.0,104330.0,1.69271373]
[1748885791079,0.1915715,104350.0,104340.0,0.11088]
[1748885791275,1.07516869,104350.0,104340.0,0.36088]
[1748885791468,1.07516869,104350.0,104340.0,0.25]
[1748885791670,0.95516869,104350.0,104340.0,0.25]
[1748885792275,0.95716869,104350.0,104340.0,0.257]
[1748885792476,1.05716869,104350.0,104340.0,0.257]
[1748885792782,1.06416869,104350.0,104340.0,0.258]
[1748885794282,1.07216869,104350.0,104340.0,0.251]
[1748885796477,0.8550715,104350.0,104340.0,0.251]
[1748885796774,1.06216869,104350.0,104340.0,0.251]
[1748885799676,1.06216869,104350.0,104340.0,0.26537]
[1748885802076,1.26216869,104350.0,104340.0,0.26537]
[1748885803280,1.27169313,104350.0,104340.0,0.26537]
[1748885803686,1.27169313,104350.0,104340.0,0.06537]
[1748885804380,1.46169313,104350.0,104340.0,0.01537]
[1748885805083,1.2450715,104350.0,104340.0,0.01537]
[1748885805585,1.45216869,104350.0,104340.0,0.01537]
[1748885805776,1.45216869,104350.0,104340.0,0.04697]
[1748885807680,1.45216869,104350.0,104340.0,0.01537]
[1748885810094,1.2450715,104350.0,104340.0,0.01537]
[1748885810287,1.45216869,104350.0,104340.0,0.01537]
[1748885811991,1.2450715,104350.0,104340.0,0.01537]
[1748885812191,1.45216869,104350.0,104340.0,0.01537]
[1748885812593,1.45236869,104350.0,104340.0,0.01537]
[1748885812889,1.45236869,104350.0,104340.0,0.04787]
[1748885814093,1.25236869,104350.0,104340.0,0.04787]
[1748885814594,1.45236869,104350.0,104340.0,0.04787]
[1748885815192,1.2452715,104350.0,104340.0,0.04787]
[1748885815392,1.45236869,104350.0,104340.0,0.04787]
[1748885817199,1.45236869,104350.0,104340.0,0.07827]
[1748885817495,1.2452715,104350.0,104340.0,0.07827]
[1748885817702,1.45236869,104350.0,104340.0,0.07827]
[1748885818783,1.6019815,104350.0,104340.0,0.07827]
[1748885818983,1.39488431,104350.0,104340.0,0.07827]
[1748885819189,1.4117815,104350.0,104340.0,0.22797034]
[1748885819391,1.26236869,104350.0,104340.0,0.22797034]
[1748885819689,1.4117815,104350.0,104340.0,0.22797034]
[1748885819898,1.4119815,104350.0,104340.0,0.21827]
[1748885821290,1.4419815,104350.0,104340.0,0.07827]
[1748885822604,1.4419815,104350.0,104340.0,0.53267]
[1748885822905,1.4419815,104350.0,104340.0,0.54218303]
[1748885823900,1.4419815,104350.0,104340.0,0.53267]
[1748885824804,1.4419815,104350.0,104340.0,0.54206585]
[1748885826107,1.4419815,104350.0,104340.0,0.54218844]
[1748885826405,1.29236869,104350.0,104340.0,0.59321792]
[1748885828711,1.29236869,104350.0,104340.0,0.58391985]
[1748885829103,1.09236869,104350.0,104340.0,0.58391985]
[1748885829503,1.29236869,104350.0,104340.0,0.58391985]
[1748885830900,1.0852715,104350.0,104340.0,0.58391985]
[1748885831106,1.29236869,104350.0,104340.0,0.12951985]
[1748885831315,1.29236869,104350.0,104340.0,0.58275985]
[1748885831709,1.29236869,104350.0,104340.0,0.53163259]
[1748885831917,1.0852715,104350.0,104340.0,0.58278692]
[1748885832210,1.0852715,104350.0,104340.0,0.77437672]
[1748885832415,1.0224715,104350.0,104340.0,0.94551225]
[1748885832618,1.0222715,104350.0,104340.0,0.94551225]
[1748885832804,1.22936869,104350.0,104340.0,0.94551225]
[1748885833011,1.29526869,104350.0,104340.0,0.75385225]
[1748885833210,1.29526869,104350.0,104340.0,0.30049225]
[1748885833416,1.29526869,104350.0,104340.0,0.55262692]
[1748885833609,1.29526869,104350.0,104340.0,0.52012692]
[1748885835412,1.29526869,104350.0,104340.0,0.46897259]
[1748885835620,1.29526869,104350.0,104340.0,0.01549259]
[1748885835818,0.1915898,104340.0,104330.0,0.03552255]
[1748885836114,1.32188418,104340.0,104330.0,0.05118818]
[1748885836512,1.23188418,104340.0,104330.0,0.05118818]
[1748885836717,0.1916082,104330.0,104320.0,0.69450545]
[1748885836909,0.86570539,104330.0,104320.0,1.16049008]
[1748885837104,0.86570539,104330.0,104320.0,1.11570895]
[1748885837309,0.86570539,104330.0,104320.0,1.16049008]
[1748885837717,0.86570539,104330.0,104320.0,1.11570895]
[1748885838517,0.6586082,104330.0,104320.0,1.11570895]
[1748885838723,0.86670539,104330.0,104320.0,1.12970895]
[1748885838916,0.96670539,104330.0,104320.0,1.12970895]
[1748885839122,0.96870539,104330.0,104320.0,1.13070895]
[1748885839324,0.96870539,104330.0,104320.0,1.1306963]
[1748885841524,0.60790539,104330.0,104320.0,1.1306963]
[1748885842929,0.54190539,104330.0,104320.0,1.1306963]
[1748885843130,0.54190539,104330.0,104320.0,1.13068407]
[1748885843426,0.3348082,104330.0,104320.0,1.13068407]
[1748885844424,0.3665082,104330.0,104320.0,1.13068407]
[1748885845327,0.57360539,104330.0,104320.0,1.13068407]
[1748885845525,0.60610539,104330.0,104320.0,1.13068407]
[1748885846217,0.60610539,104330.0,104320.0,1.36707138]
[1748885846420,0.113,104330.0,104320.0,1.93496857]
[1748885846619,0.2946082,104330.0,104320.0,1.37128857]
[1748885846818,0.2946082,104330.0,104320.0,2.27994457]
[1748885847121,0.2946082,104330.0,104320.0,2.25002818]
[1748885847323,0.2946082,104330.0,104320.0,2.1771924]
[1748885847624,0.2948082,104330.0,104320.0,2.1771924]
[1748885847831,0.2948082,104330.0,104320.0,2.250195]
[1748885848333,0.2948082,104330.0,104320.0,2.25019433]
[1748885848827,0.2948082,104330.0,104320.0,2.20625292]
[1748885849016,0.2948082,104330.0,104320.0,2.45625292]
[1748885849614,0.2948082,104330.0,104320.0,2.50018384]
[1748885850626,0.2948082,104330.0,104320.0,2.40508836]
[1748885850827,0.2948082,104330.0,104320.0,2.45625255]
[1748885851416,0.1032,104330.0,104320.0,2.45625255]
[1748885851730,0.1032,104330.0,104320.0,2.36795469]
[1748885851926,0.1032,104330.0,104320.0,2.27909378]
[1748885852431,0.003,104330.0,104320.0,2.27909378]
[1748885852819,0.0032,104330.0,104320.0,3.86851552]
[1748885853122,0.0032,104330.0,104320.0,3.50771552]
[1748885853328,0.0032,104330.0,104320.0,4.22931552]
[1748885854123,0.0032,104330.0,104320.0,4.23031552]
[1748885854423,0.0022,104330.0,104320.0,4.22731552]
[1748885854625,0.0022,104330.0,104320.0,4.22732291]
[1748885856831,0.0022,104330.0,104320.0,3.97732291]
[1748885857027,0.193808,104330.0,104320.0,3.97732291]
[1748885857731,0.0022,104330.0,104320.0,3.97732291]
[1748885858128,0.0022,104330.0,104320.0,3.41452291]
[1748885858318,0.0022,104330.0,104320.0,3.93046072]
[1748885858523,0.0022,104330.0,104320.0,3.97433806]
[1748885860531,0.0022,104330.0,104320.0,3.52337806]
[1748885860729,0.0022,104330.0,104320.0,3.97421806]
[1748885862234,0.0022,104330.0,104320.0,3.97415452]
[1748885862620,0.193808,104330.0,104320.0,3.37810572]
[1748885862824,0.193808,104330.0,104320.0,4.03344349]
[1748885863225,0.193808,104330.0,104320.0,4.03364349]
[1748885863427,0.193808,104330.0,104320.0,4.06262743]
[1748885863623,0.193808,104330.0,104320.0,3.96677143]
[1748885864029,0.0022,104330.0,104320.0,3.96677143]
[1748885864530,0.193808,104330.0,104320.0,3.96677143]
[1748885864929,0.0022,104330.0,104320.0,3.96677143]
[1748885865129,0.40090519,104330.0,104320.0,1.17223296]
[1748885865330,0.40090519,104330.0,104320.0,1.20831713]
[1748885865331,0.256808,104330.0,104320.0,1.20831713]
[1748885865537,0.256808,104330.0,104320.0,1.58248225]
[1748885865731,0.256808,104330.0,104320.0,1.58228225]
[1748885865932,0.46390519,104330.0,104320.0,1.58228225]
[1748885866135,0.46390519,104330.0,104320.0,1.59030008]
[1748885866136,0.46290519,104330.0,104320.0,1.59030008]
[1748885866339,0.46290519,104330.0,104320.0,1.59042008]
[1748885866542,0.56290519,104330.0,104320.0,1.59042008]
[1748885866841,0.56290519,104330.0,104320.0,1.58834008]
[1748885867037,0.355808,104330.0,104320.0,1.02930008]
[1748885867245,0.355808,104330.0,104320.0,1.58830008]
[1748885867738,0.355808,104330.0,104320.0,1.65140008]
[1748885868926,0.355808,104330.0,104320.0,1.85849727]
[1748885869144,0.1642,104330.0,104320.0,1.90316227]
[1748885869343,0.1642,104330.0,104320.0,1.93616227]
[1748885869344,0.355808,104330.0,104320.0,1.93616227]
[1748885869641,0.355608,104330.0,104320.0,3.43616227]
[1748885869843,0.355808,104330.0,104320.0,3.49569124]
[1748885870142,0.255608,104330.0,104320.0,3.56855252]
[1748885870328,0.255808,104330.0,104320.0,3.56855252]
[1748885871729,0.255808,104330.0,104320.0,3.61243388]
[1748885871935,0.255808,104330.0,104320.0,3.51662075]
[1748885872134,0.255808,104330.0,104320.0,3.43973939]
[1748885872634,0.255808,104330.0,104320.0,3.38021042]
[1748885872835,0.255808,104330.0,104320.0,1.88021042]
[1748885873550,0.255808,104330.0,104320.0,3.53565323]
[1748885873843,0.255808,104330.0,104320.0,3.43979242]
[1748885874043,0.2558078,104330.0,104320.0,3.43979242]
[1748885874245,0.0642,104330.0,104320.0,3.48368314]
[1748885874747,0.0642,104330.0,104320.0,3.43979242]
[1748885875842,0.0642,104330.0,104320.0,3.46279513]
[1748885876048,0.0642,104330.0,104320.0,3.55139266]
[1748885876356,0.0012,104330.0,104320.0,3.49181066]
[1748885876643,0.001,104330.0,104320.0,3.40243766]
[1748885877051,0.0012,104330.0,104320.0,3.40243766]
[1748885877350,0.0012,104330.0,104320.0,3.52163291]
[1748885878549,0.0012,104330.0,104320.0,3.02049338]
[1748885878738,0.0012,104330.0,104320.0,3.47033338]
[1748885878941,0.0012,104330.0,104320.0,3.35116938]
[1748885879951,0.0012,104330.0,104320.0,3.34980938]
[1748885881046,0.0012,104330.0,104320.0,3.2985965]
[1748885881251,0.0012,104330.0,104320.0,3.34981714]
[1748885883157,0.0012,104330.0,104320.0,3.33598012]
[1748885884858,0.0012,104330.0,104320.0,3.28475565]
[1748885885051,0.0012,104330.0,104320.0,2.88677103]
[1748885885250,0.0012,104330.0,104320.0,3.33597103]
[1748885887558,0.1928079,104330.0,104320.0,2.79792921]
[1748885887753,0.2571079,104330.0,104320.0,0.75296987]
[1748885887945,0.46420509,104330.0,104320.0,1.4157922]
[1748885888148,0.46420509,104330.0,104320.0,1.26657311]
[1748885888349,0.46420509,104330.0,104320.0,1.26677311]
[1748885888555,0.2571079,104330.0,104320.0,1.26677311]
[1748885888859,0.3571079,104330.0,104320.0,1.26679961]
[1748885889161,0.3571079,104330.0,104320.0,1.26675961]
[1748885889553,0.3571079,104330.0,104320.0,1.22203565]
[1748885891164,0.3571079,104330.0,104320.0,1.22175565]
[1748885891461,0.3571079,104330.0,104320.0,1.77355396]
[1748885891657,0.3569079,104330.0,104320.0,1.85032396]
[1748885891851,0.3571079,104330.0,104320.0,1.85032396]
[1748885892450,0.3571079,104330.0,104320.0,1.91062399]
[1748885892960,0.1332,104330.0,104320.0,1.983578]
[1748885893255,0.133,104330.0,104320.0,1.96986996]
[1748885893461,0.2248074,104330.0,104320.0,1.96986996]
[1748885893761,0.2248074,104330.0,104320.0,3.51457514]
[1748885893962,0.2248074,104330.0,104320.0,3.51529514]
[1748885894161,0.2248074,104330.0,104320.0,3.47058996]
[1748885894660,0.0332,104330.0,104320.0,3.47058996]
[1748885895859,0.0332,104330.0,104320.0,3.55999438]
[1748885896051,0.0012,104330.0,104320.0,3.47058996]
[1748885896253,0.0012,104330.0,104320.0,3.60392518]
[1748885897161,0.0012,104330.0,104320.0,3.56000953]
[1748885898547,0.0012,104330.0,104320.0,4.46588953]
[1748885899456,0.0012,104330.0,104320.0,4.01612953]
[1748885899657,0.0337,104330.0,104320.0,4.46516953]
[1748885900061,0.0337,104330.0,104320.0,4.4651961]
[1748885901163,0.0337,104330.0,104320.0,4.40558143]
[1748885902854,0.0012,104330.0,104320.0,4.40558143]
[1748885903050,0.001,104330.0,104320.0,4.40558143]
[1748885903458,0.0012,104330.0,104320.0,4.40558143]
[1748885904066,0.0322,104330.0,104320.0,4.46522236]
[1748885904366,0.0322,104330.0,104320.0,4.40558143]
[1748885905067,0.0322,104330.0,104320.0,4.37656228]
[1748885905366,0.0012,104330.0,104320.0,4.37656228]
[1748885905767,0.0012,104330.0,104320.0,4.50217786]
[1748885905957,0.0012,104330.0,104320.0,3.64246467]
[1748885906160,0.0012,104330.0,104320.0,4.40644186]
[1748885906361,0.0012,104330.0,104320.0,4.37673821]
[1748885907354,0.0012,104330.0,104320.0,4.33280335]
[1748885907556,0.0012,104330.0,104320.0,4.37677933]
[1748885908462,0.0012,104330.0,104320.0,4.41223803]
[1748885908660,0.001,104330.0,104320.0,4.41223803]
[1748885908965,0.0012,104330.0,104320.0,4.45616034]
[1748885909159,0.0012,104330.0,104320.0,4.41223803]
[1748885909468,1e-08,104330.0,104320.0,4.41223803]
[1748885912269,0.00014373,104340.0,104330.0,0.1916074]
[1748885912458,0.00014373,104340.0,104330.0,1.17248019]
[1748885912663,0.00014373,104340.0,104330.0,1.37957738]
[1748885912863,0.00014373,104340.0,104330.0,2.87957738]
[1748885913064,0.06194373,104340.0,104330.0,2.87957738]
[1748885913470,0.06294373,104340.0,104330.0,2.87957738]
[1748885913674,0.06294373,104340.0,104330.0,2.95254851]
[1748885913869,0.06494373,104340.0,104330.0,3.33057738]
[1748885914073,0.06494373,104340.0,104330.0,3.35963292]
[1748885914572,0.06394373,104340.0,104330.0,3.41923507]
[1748885914770,0.06294373,104340.0,104330.0,3.43925107]
[1748885915172,0.06294373,104340.0,104330.0,3.23215388]
[1748885915365,0.06294373,104340.0,104330.0,3.43925107]
[1748885915565,0.06294373,104340.0,104330.0,3.45362107]
[1748885916171,0.06294373,104340.0,104330.0,3.49751711]
[1748885916372,0.06294373,104340.0,104330.0,3.43791496]
[1748885918273,0.06294373,104340.0,104330.0,3.3649434]
[1748885918577,0.06294373,104340.0,104330.0,2.9139097]
[1748885918777,0.06294373,104340.0,104330.0,3.3652297]
[1748885918967,0.06294373,104340.0,104330.0,2.9139097]
[1748885919167,0.06294373,104340.0,104330.0,3.3653497]
[1748885921679,0.06294373,104340.0,104330.0,2.9139097]
[1748885921873,0.06294373,104340.0,104330.0,3.3651897]
[1748885922076,0.06294373,104340.0,104330.0,3.39425878]
[1748885922482,0.06294373,104340.0,104330.0,3.39428529]
[1748885922982,0.06294373,104340.0,104330.0,3.32133343]
[1748885923179,0.06294373,104340.0,104330.0,3.39428529]
[1748885923677,0.06294373,104340.0,104330.0,3.1871881]
[1748885923886,0.06294373,104340.0,104330.0,3.39428529]
[1748885925579,0.06274373,104340.0,104330.0,3.39428529]
[1748885925780,0.06294373,104340.0,104330.0,3.39428529]
[1748885926177,0.06294373,104340.0,104330.0,3.3422339]
[1748885926479,0.06294373,104340.0,104330.0,3.39431709]
[1748885928684,0.06294373,104340.0,104330.0,3.39339709]
[1748885930097,0.06294373,104340.0,104330.0,3.3934279]
[1748885930597,0.06294373,104340.0,104330.0,3.30400045]
[1748885930787,0.06294373,104340.0,104330.0,3.39347861]
[1748885931102,0.06294373,104340.0,104330.0,3.30400045]
[1748885932895,0.06294373,104340.0,104330.0,3.39416029]
[1748885933297,0.06294373,104340.0,104330.0,3.42536029]
[1748885933691,0.09424373,104340.0,104330.0,3.42536029]
[1748885934096,0.09424373,104340.0,104330.0,3.42538373]
[1748885934887,0.09424373,104340.0,104330.0,3.30621973]
[1748885935097,0.09424373,104340.0,104330.0,3.42538373]
[1748885935799,0.09424373,104340.0,104330.0,3.39418373]
[1748885935991,0.09424373,104340.0,104330.0,3.39423614]
[1748885937201,0.09424373,104340.0,104330.0,2.94387614]
[1748885937402,0.09424373,104340.0,104330.0,3.27499214]
[1748885937604,0.28583343,104340.0,104330.0,1.08491495]
[1748885937898,0.28583343,104340.0,104330.0,1.63637515]
[1748885938202,0.28583343,104340.0,104330.0,3.13637515]
[1748885938400,0.28583343,104340.0,104330.0,3.34347234]
[1748885939894,0.09424373,104340.0,104330.0,3.41656861]
[1748885940403,0.09424373,104340.0,104330.0,3.44850861]
[1748885941203,0.09424373,104340.0,104330.0,3.3589271]
[1748885941402,0.09424373,104340.0,104330.0,3.32981922]
[1748885941599,0.09424373,104340.0,104330.0,3.32981924]
[1748885941999,0.09424373,104340.0,104330.0,3.12272205]
[1748885942206,0.09424373,104340.0,104330.0,3.36011924]
[1748885942396,0.09424373,104340.0,104330.0,3.43321738]
[1748885942791,0.09424373,104340.0,104330.0,3.36011924]
[1748885943601,0.09424373,104340.0,104330.0,3.4497021]
[1748885943996,0.09424373,104340.0,104330.0,3.36011924]
[1748885945499,0.09424373,104340.0,104330.0,3.30794334]
[1748885945699,0.09424373,104340.0,104330.0,3.36015354]
[1748885946094,0.09424373,104340.0,104330.0,3.44973326]
[1748885946299,0.09424373,104340.0,104330.0,3.36015354]
[1748885946499,0.09424373,104340.0,104330.0,3.44973151]
[1748885947295,0.09424373,104340.0,104330.0,3.36015354]
[1748885949595,0.09424373,104340.0,104330.0,3.47931754]
[1748885950002,0.09424373,104340.0,104330.0,3.50951754]
[1748885950205,0.09404373,104340.0,104330.0,3.50951754]
[1748885950502,0.09424373,104340.0,104330.0,3.50951754]
[1748885951608,0.09424373,104340.0,104330.0,3.39035354]
[1748885951903,0.09424373,104340.0,104330.0,3.50951754]
[1748885952109,0.09424373,104340.0,104330.0,3.30242035]
[1748885952305,0.09424373,104340.0,104330.0,3.50951754]
[1748885953211,0.09424373,104340.0,104330.0,3.50926628]
[1748885955504,0.09424373,104340.0,104330.0,3.50886157]
[1748885956501,0.09424373,104340.0,104330.0,3.41922884]
[1748885956701,0.09424373,104340.0,104330.0,3.50886263]
[1748885956907,0.09424373,104340.0,104330.0,3.41922884]
[1748885957211,0.03264373,104340.0,104330.0,3.41923257]
[1748885957709,0.002,104370.0,104360.0,0.1915529]
[1748885957918,0.095755,104390.0,104380.0,0.39861339]
[1748885957919,0.1914988,104390.0,104380.0,0.39861339]
[1748885958107,0.1914988,104390.0,104380.0,1.76221285]
[1748885958411,0.1916988,104390.0,104380.0,1.140538]
[1748885958607,0.1916988,104390.0,104380.0,1.20146126]
[1748885958814,0.2916988,104390.0,104380.0,1.15007866]
[1748885959004,0.3106988,104390.0,104380.0,1.21300192]
[1748885959516,0.51779599,104390.0,104380.0,1.21300192]
[1748885959810,0.61359599,104390.0,104380.0,1.21284192]
[1748885960004,0.60859599,104390.0,104380.0,1.21184192]
[1748885960512,0.51479599,104390.0,104380.0,1.16628866]
[1748885960716,0.51479599,104390.0,104380.0,1.16648575]
[1748885960910,0.54699599,104390.0,104380.0,0.71728575]
[1748885961110,0.60769599,104390.0,104380.0,1.22724901]
[1748885961303,0.96849599,104390.0,104380.0,1.16632575]
[1748885962411,0.96849599,104390.0,104380.0,1.24285162]
[1748885963007,0.60769599,104390.0,104380.0,1.24285162]
[1748885963209,0.96849599,104390.0,104380.0,1.24285162]
[1748885963811,1.33429599,104390.0,104380.0,0.91174667]
[1748885964016,1.33429599,104390.0,104380.0,0.66799653]
[1748885964212,1.33429599,104390.0,104380.0,0.85951273]
[1748885964608,1.33429599,104390.0,104380.0,0.86051273]
[1748885965008,1.32029599,104390.0,104380.0,0.85951273]
[1748885965210,1.32329599,104390.0,104380.0,0.85951273]
[1748885965718,1.33429599,104390.0,104380.0,0.86051273]
[1748885966213,1.08429599,104390.0,104380.0,0.86051273]
[1748885967617,1.08429599,104390.0,104380.0,0.41163273]
[1748885967821,1.08429599,104390.0,104380.0,0.86011273]
[1748885968017,0.98849599,104390.0,104380.0,0.86011273]
[1748885968618,0.7813988,104390.0,104380.0,0.86011273]
[1748885968818,0.7813988,104390.0,104380.0,0.89181273]
[1748885969320,0.7813988,104390.0,104380.0,0.88181273]
[1748885969513,0.7813988,104390.0,104380.0,1.12311273]
[1748885970620,0.7811988,104390.0,104380.0,1.12311273]
[1748885971319,0.62769599,104390.0,104380.0,1.12311273]
[1748885972209,0.4205988,104390.0,104380.0,1.12311273]
[1748885972727,0.4205988,104390.0,104380.0,0.67463273]
[1748885972913,0.4205988,104390.0,104380.0,1.12239273]
[1748885975325,0.4205988,104390.0,104380.0,1.12219273]
[1748885977618,0.62769599,104390.0,104380.0,0.67463273]
[1748885977831,0.98849599,104390.0,104380.0,1.12219273]
[1748885980928,0.98849599,104390.0,104380.0,0.56695273]
[1748885981230,1.31429599,104390.0,104380.0,0.30289587]
[1748885981420,1.31429599,104390.0,104380.0,0.65721587]
[1748885981826,1.51429599,104390.0,104380.0,0.65721587]
[1748885983527,1.41849599,104390.0,104380.0,0.65721587]
[1748885984530,1.20849599,104390.0,104380.0,0.65721587]
[1748885984729,1.20849599,104390.0,104380.0,0.68851587]
[1748885985430,1.20849599,104390.0,104380.0,0.72011587]
[1748885986126,1.20849599,104390.0,104380.0,0.68851587]
[1748885986431,1.20849599,104390.0,104380.0,0.74083759]
[1748885987329,1.18849599,104390.0,104380.0,0.68851587]
[1748885987525,1.18849599,104390.0,104380.0,0.74162699]
[1748885988228,1.18849599,104390.0,104380.0,0.26276699]
[1748885988430,1.43849599,104390.0,104380.0,0.64717587]
[1748885989436,1.43849599,104390.0,104380.0,0.57065]
[1748885989836,1.79429599,104390.0,104380.0,1e-08]
[1748885990136,2.48181599,104390.0,104380.0,1e-08]
[1748885991141,2.48281599,104390.0,104380.0,1e-08]
[1748885991330,0.39861149,104380.0,104370.0,0.00014373]
[1748885991524,1.53230868,104380.0,104370.0,0.01451373]
[1748885991735,1.62811668,104380.0,104370.0,0.01451373]
[1748885992430,1.44001949,104380.0,104370.0,0.01651373]
[1748885992841,1.54001949,104380.0,104370.0,0.01651373]
[1748885994435,1.74001949,104380.0,104370.0,0.01651373]
[1748885994937,1.74942819,104380.0,104370.0,0.01651373]
[1748886000544,1.74942819,104380.0,104350.0,0.00210829]
[1748886000545,0.1915517,104360.0,104350.0,0.00210829]
[1748886000739,1.15024889,104360.0,104350.0,0.11210829]
[1748886000939,1.24914889,104360.0,104350.0,0.17550829]
[1748886002032,1.27214889,104360.0,104350.0,0.17650829]
[1748886002233,1.27214889,104360.0,104350.0,0.35650829]
[1748886002641,1.37214889,104360.0,104350.0,0.35650829]
[1748886003243,1.37214889,104360.0,104350.0,0.37087829]
[1748886003739,1.37214889,104360.0,104350.0,0.81843829]
[1748886006241,1.57214889,104360.0,104350.0,0.81843829]
[1748886006744,1.57214889,104360.0,104350.0,0.37087829]
[1748886006944,0.1915706,104350.0,104340.0,0.4478]
[1748886007255,0.85556779,104350.0,104340.0,0.3102]
[1748886007437,1.16556779,104350.0,104340.0,0.1202]
[1748886008146,1.27256779,104350.0,104340.0,0.1202]
[1748886009452,1.27756779,104350.0,104340.0,0.1212]
[1748886009748,1.37756779,104350.0,104340.0,0.0012]
[1748886010749,1.37756779,104350.0,104340.0,0.0329]
[1748886011748,1.37856779,104350.0,104340.0,0.0329]
[1748886012056,1.37856779,104350.0,104330.0,0.0303]
[1748886012057,1.38822548,104350.0,104330.0,0.0303]